bitfinex/quotes_ETHUSD_20250711
["timestamp","ask_amount","ask_price","bid_price","bid_amount"]
[1752212819968,6.203,3017.7,3016.5,0.41233156]
[1752212820282,0.55,3017.5,3016.5,0.41233156]
[1752212820495,5.653,3017.4,3016.5,0.41233156]
[1752212820670,3.31214711,3019.2,3016.5,0.41233156]
[1752212820671,8.00362059,3018.7,3017.1,1.0032]
[1752212820872,8.00362059,3019.3,3017.2,0.03314331]
[1752212821285,5.651,3019.2,3017.6,3.31379012]
[1752212821491,0.002,3019.5,3017.7,0.36451683]
[1752212821697,5.652,3019.4,3017.8,1.0729]
[1752212821873,0.002,3019.5,3017.9,0.03313562]
[1752212821874,5.652,3019.3,3017.9,0.03313562]
[1752212822069,0.002,3019.5,3018.0,1.0729]
[1752212822375,0.002,3019.5,3018.4,3.31299671]
[1752212822594,0.002,3019.5,3018.5,0.03312903]
[1752212822804,0.002,3019.5,3018.0,1.0729]
[1752212822805,5.648,3019.4,3018.6,0.33460602]
[1752212823010,5.648,3019.4,3018.0,1.0729]
[1752212823173,0.55,3019.3,3018.0,1.0729]
[1752212823800,5.647,3019.4,3018.6,3.31279051]
[1752212824105,5.647,3019.4,3019.3,0.1648]
[1752212824305,15.647,3019.4,3018.0,1.0729]
[1752212824483,8.00362059,3019.2,3018.1,0.03313342]
[1752212824816,0.55,3019.1,3018.1,0.03313342]
[1752212825013,0.002,3019.5,3018.1,0.03313342]
[1752212825014,0.002,3019.5,3019.1,0.1656]
[1752212825214,0.002,3019.5,3019.4,0.1648]
[1752212826080,5.649,3019.5,3019.4,0.1648]
[1752212826509,0.002,3019.5,3019.4,0.1648]
[1752212826826,0.552,3019.5,3019.4,0.1648]
[1752212827404,0.002,3019.5,3019.4,0.1648]
[1752212828013,0.552,3019.5,3019.4,0.1648]
[1752212828818,1.1714,3019.5,3019.4,0.1648]
[1752212829116,11.3362,3019.5,3018.6,0.1656]
[1752212829423,0.002,3019.5,3018.6,3.31279307]
[1752212829578,0.002,3019.5,3018.7,1.08492684]
[1752212829773,0.002,3019.5,3018.7,1.0518]
[1752212830006,0.002,3019.5,3018.8,0.29612702]
[1752212830212,0.002,3019.5,3018.9,0.29612702]
[1752212830390,0.002,3019.5,3018.7,1.0518]
[1752212830391,0.002,3019.5,3019.0,0.29612702]
[1752212830615,0.002,3019.5,3019.1,0.29612702]
[1752212830885,0.002,3019.5,3019.2,0.29612702]
[1752212831108,6.18,3019.4,3019.3,0.29612702]
[1752212831500,0.002,3019.5,3019.3,0.29612702]
[1752212831824,0.002,3019.5,3019.4,0.29612702]
[1752212833609,0.002,3019.5,3019.4,1.33282702]
[1752212835111,0.002,3019.5,3019.4,0.29612702]
[1752212835318,5.614,3019.5,3019.4,0.29612702]
[1752212835480,6.164,3019.5,3019.4,0.29612702]
[1752212835813,6.7804,3019.5,3019.4,0.29612702]
[1752212835986,16.7804,3019.5,3019.4,0.29612702]
[1752212836188,10.55,3019.4,3016.8,1.0241]
[1752212836388,10.55,3019.0,3017.1,1.0241]
[1752212836588,10.55,3019.0,3017.1,4.33853253]
[1752212836589,0.55,3018.8,3017.1,4.33853253]
[1752212836791,0.55,3018.8,3017.2,0.46699656]
[1752212836980,10.0,3019.0,3017.2,0.46699656]
[1752212836981,0.55,3019.0,3017.2,0.43385325]
[1752212837186,0.55,3019.0,3017.1,1.0241]
[1752212837187,0.55,3018.6,3017.1,1.0241]
[1752212837583,10.55,3018.4,3017.1,1.0241]
[1752212837808,0.55,3018.4,3017.1,1.0241]
[1752212837986,0.55,3018.5,3017.1,1.0241]
[1752212838181,8.00362059,3018.6,3017.1,1.0241]
[1752212838182,0.55,3018.3,3017.1,1.0241]
[1752212838709,10.55,3018.3,3017.1,1.0241]
[1752212838895,5.611,3018.2,3017.2,0.03314331]
[1752212839225,10.0,3018.5,3017.1,1.0241]
[1752212839226,0.55,3018.4,3017.1,1.0241]
[1752212839408,0.55,3018.4,3018.1,0.1656]
[1752212839716,11.1661,3018.4,3018.0,0.1656]
[1752212840231,0.55,3018.1,3018.0,0.1656]
[1752212840381,5.7766,3018.5,3018.0,0.1656]
[1752212840382,0.1656,3018.5,3018.0,0.1656]
[1752212840589,0.55,3018.4,3018.0,0.1656]
[1752212840807,0.55,3018.4,3018.1,0.1656]
[1752212841009,5.606,3018.3,3017.2,0.03314331]
[1752212841188,5.606,3018.3,3017.1,1.0241]
[1752212841189,0.55,3018.2,3018.1,0.1656]
[1752212841508,0.55,3018.2,3017.1,1.0241]
[1752212841509,10.55,3018.2,3017.1,1.0241]
[1752212841707,12.1656,3018.2,3017.8,0.1656]
[1752212842114,12.1656,3018.2,3017.1,1.0241]
[1752212842115,0.55,3018.2,3017.2,0.03314331]
[1752212842316,0.55,3018.2,3018.1,0.1656]
[1752212843435,0.55,3018.2,3017.2,0.03314331]
[1752212843616,0.55,3018.4,3018.0,0.1656]
[1752212843797,0.55,3018.1,3018.0,0.1656]
[1752212843999,6.152,3018.1,3018.0,0.1656]
[1752212844404,5.599,3018.1,3018.0,0.1656]
[1752212845028,6.149,3018.1,3018.0,0.1656]
[1752212846700,0.55,3018.0,3017.1,1.0241]
[1752212846895,0.55,3018.0,3017.7,0.1656]
[1752212847530,1.1649,3018.0,3017.7,0.1656]
[1752212847834,6.134,3017.9,3016.5,0.034151]
[1752212848038,0.55,3017.7,3016.6,0.0331499]
[1752212848331,8.00362059,3018.2,3016.7,1.0762]
[1752212848332,10.0,3018.1,3016.7,1.0762]
[1752212848534,11.25692183,3019.4,3016.7,1.0762]
[1752212848535,5.605,3018.0,3016.7,1.0762]
[1752212848736,5.604,3018.0,3016.7,1.0762]
[1752212848923,0.55,3017.9,3016.7,1.0762]
[1752212849247,0.55,3017.9,3016.8,0.0331477]
[1752212849740,0.55,3017.9,3016.7,1.0762]
[1752212850215,0.55,3018.6,3016.7,1.0762]
[1752212850417,10.55,3018.4,3016.7,1.0762]
[1752212850952,8.00362059,3018.8,3016.7,1.0762]
[1752212851130,8.00362059,3018.8,3016.9,1.0762]
[1752212851131,15.595,3018.7,3016.9,1.0762]
[1752212851333,0.6184,3019.5,3017.1,1.0762]
[1752212851547,0.6184,3019.5,3017.2,1.10934331]
[1752212851548,0.002,3019.5,3017.2,1.10934331]
[1752212851753,0.002,3019.5,3017.4,10.0]
[1752212851908,0.002,3019.5,3017.5,1.0762]
[1752212852109,0.55,3018.6,3017.5,1.0762]
[1752212852346,10.0,3019.2,3017.5,1.0762]
[1752212852642,0.002,3019.5,3015.9,16.83895695]
[1752212852643,0.002,3019.5,3017.7,1.0266]
[1752212852844,0.002,3019.5,3017.9,1.0266]
[1752212853020,0.002,3019.5,3018.1,1.0266]
[1752212853223,0.002,3019.5,3018.3,1.0266]
[1752212853519,0.002,3019.5,3018.5,1.0266]
[1752212853740,0.002,3019.5,3018.0,1.0266]
[1752212853910,0.002,3019.5,3018.2,1.0266]
[1752212854112,0.002,3019.5,3018.4,1.0266]
[1752212854348,0.002,3019.5,3018.6,1.0266]
[1752212855055,0.17273449,3020.9,3018.9,1.0516]
[1752212855216,7.95851782,3021.5,3018.8,10.0]
[1752212855217,10.0,3021.1,3019.0,1.381644]
[1752212855417,10.0,3021.1,3019.2,1.0516]
[1752212855694,5.61,3021.2,3019.3,0.3300407]
[1752212855859,0.002,3021.5,3019.4,0.29692045]
[1752212856060,0.002,3021.5,3019.6,1.0638]
[1752212856359,0.002,3021.5,3019.8,1.0638]
[1752212856556,0.002,3021.5,3018.8,10.0]
[1752212856557,0.002,3021.5,3019.9,0.5919925]
[1752212856711,0.002,3021.5,3020.0,1.39383303]
[1752212856934,0.002,3021.5,3020.1,0.29692045]
[1752212857136,0.002,3021.5,3020.2,1.36021525]
[1752212857466,0.002,3021.5,3020.4,1.0638]
[1752212857780,0.002,3021.5,3020.8,1.0638]
[1752212858077,0.002,3021.5,3020.9,0.29641525]
[1752212858295,0.01130776,3022.6,3020.0,10.0]
[1752212858296,2.38052921,3024.4,3021.5,1.0491]
[1752212858437,2.97666152,3024.9,3021.5,1.0491]
[1752212858438,0.70628555,3024.8,3024.4,24.611548]
[1752212858770,0.70628555,3024.8,3023.1,10.0]
[1752212858771,0.15,3026.0,3024.5,5.72520908]
[1752212858956,0.15,3026.0,3024.6,13.656795]
[1752212859271,0.15,3026.0,3025.1,10.0]
[1752212859458,0.15,3026.0,3024.9,7.95651782]
[1752212859459,0.15,3026.0,3025.2,1.011]
[1752212859769,0.15,3026.0,3025.3,0.03305457]
[1752212860094,0.15,3026.0,3025.2,1.011]
[1752212860984,0.15,3026.0,3024.4,0.29058001]
[1752212861184,7.95651782,3025.6,3024.5,1.0063]
[1752212861351,0.55,3025.4,3024.5,1.0063]
[1752212861558,10.0,3024.9,3024.4,0.29058001]
[1752212861752,0.55,3024.8,3024.1,0.29300301]
[1752212861952,17.938,3024.9,3023.3,1.0689]
[1752212861953,0.55,3024.0,3023.3,1.0689]
[1752212862152,7.95651782,3024.1,3023.4,0.46888059]
[1752212862153,0.55,3023.8,3023.4,0.46888059]
[1752212862351,11.701,3023.9,3022.3,2.20220999]
[1752212862352,1.2251,3023.7,3023.5,2.7349783]
[1752212862551,11.701,3023.9,3023.6,0.46835832]
[1752212862552,19.65751782,3023.9,3023.6,0.46835832]
[1752212862750,19.65751782,3023.9,3023.2,2.83327497]
[1752212862751,19.65751782,3023.9,3023.7,0.46835832]
[1752212862950,19.65751782,3023.9,3022.3,1.0689]
[1752212862951,1.0093,3023.8,3023.0,2.80882384]
[1752212863241,11.705,3024.0,3023.7,2.80882384]
[1752212863446,11.705,3024.0,3023.6,1.67976459]
[1752212863447,7.95651782,3023.8,3023.6,1.67976459]
[1752212863639,3.3072064,3023.7,3022.4,3.93235338]
[1752212863867,7.95651782,3022.5,3022.1,0.68608309]
[1752212864180,10.93246819,3022.4,3022.1,0.68608309]
[1752212864489,7.95651782,3024.6,3022.3,1.0074]
[1752212864689,10.0,3024.4,3022.4,0.03308628]
[1752212864848,10.0,3024.4,3022.3,1.0074]
[1752212865047,0.55,3024.3,3022.3,1.0074]
[1752212865253,0.55,3024.3,3021.5,10.0]
[1752212865254,1.0776,3025.0,3022.5,1.0571]
[1752212865500,7.95651782,3024.6,3022.7,1.0571]
[1752212865702,6.67665178,3024.5,3022.7,1.0571]
[1752212865981,7.95651782,3025.2,3022.9,1.036]
[1752212866181,5.888,3025.1,3023.1,1.036]
[1752212866394,7.95651782,3025.2,3023.1,1.036]
[1752212866395,5.888,3025.0,3023.1,1.036]
[1752212866565,0.79565178,3025.5,3023.1,1.036]
[1752212866764,1.69303414,3025.5,3023.3,1.0748]
[1752212866975,7.58703414,3025.5,3023.5,1.0748]
[1752212867176,7.95651782,3024.9,3023.5,1.0748]
[1752212867368,7.95651782,3024.3,3023.5,1.0748]
[1752212867556,0.55,3024.1,3021.5,5.895]
[1752212867756,0.55,3023.5,3021.6,0.5895]
[1752212867951,17.95651782,3023.9,3021.0,7.935]
[1752212868151,0.55,3023.8,3021.2,10.0]
[1752212868363,1.67208815,3024.9,3023.8,0.1648]
[1752212868561,1.67208815,3024.9,3021.0,7.935]
[1752212868562,1.63065201,3025.3,3022.7,3.699096]
[1752212868793,1.68826448,3025.9,3022.9,40.0]
[1752212868996,1.66117747,3025.6,3023.1,10.0]
[1752212869193,1.66117747,3025.6,3023.0,3.41069936]
[1752212869693,7.95651782,3025.7,3023.1,0.03307862]
[1752212869694,13.86551782,3025.7,3023.1,0.03307862]
[1752212869892,13.86151782,3025.7,3023.1,0.03307862]
[1752212870090,0.18382645,3025.9,3023.1,3.923959]
[1752212870392,6.051,3026.0,3023.2,0.73346584]
[1752212870589,7.95651782,3025.5,3023.1,1.1171]
[1752212870770,10.0,3025.4,3023.1,1.1171]
[1752212870971,0.15,3026.0,3023.3,1.1171]
[1752212871292,10.15,3026.0,3023.5,1.1171]
[1752212871601,0.15,3026.0,3023.5,1.1171]
[1752212871795,0.15,3026.0,3023.7,1.1171]
[1752212872010,10.0,3025.6,3023.7,1.1171]
[1752212872196,0.55,3025.5,3023.7,1.1171]
[1752212873193,0.55,3025.5,3023.9,1.1141]
[1752212873998,1.029,3025.4,3023.9,1.1141]
[1752212874198,10.55,3025.0,3023.9,1.1141]
[1752212874868,6.922,3025.4,3023.9,1.1141]
[1752212874869,0.55,3025.3,3023.9,1.1141]
[1752212875068,10.55,3025.3,3023.9,1.1141]
[1752212875282,12.40065178,3025.3,3023.9,1.1141]
[1752212875478,10.15,3026.0,3023.9,1.1141]
[1752212876098,10.15,3026.0,3024.0,0.03306878]
[1752212876099,0.15,3026.0,3024.0,0.03306878]
[1752212876300,0.15,3026.0,3024.2,1.0318]
[1752212876803,0.55,3025.9,3024.2,1.0318]
[1752212877009,0.55,3025.9,3024.3,0.0330655]
[1752212877176,10.55,3025.7,3024.2,1.0318]
[1752212877502,10.55,3025.7,3024.3,0.69248]
[1752212878413,0.15,3026.0,3024.4,1.1366]
[1752212878825,0.7,3026.0,3025.9,0.1648]
[1752212879905,0.15,3026.0,3025.9,0.1648]
[1752212880414,0.15,3026.0,3024.9,1.1339]
[1752212880584,17.95651782,3025.7,3024.9,1.1339]
[1752212880784,10.55,3025.6,3025.0,0.29092529]
[1752212881025,0.15,3026.0,3025.1,0.03305675]
[1752212881334,0.15,3026.0,3025.0,0.29092478]
[1752212881335,10.0,3025.8,3024.5,0.29092478]
[1752212881624,10.0,3025.8,3023.9,2.77659813]
[1752212881625,17.95651782,3024.7,3024.6,0.29092478]
[1752212881826,18.50651782,3024.7,3024.0,0.29092478]
[1752212882027,0.55,3024.6,3024.1,0.32399246]
[1752212882232,0.55,3024.6,3024.2,0.29092478]
[1752212882532,0.55,3024.6,3024.3,0.29092478]
[1752212882828,0.55,3024.6,3024.4,0.29092478]
[1752212882987,7.95651782,3025.3,3024.5,0.32398809]
[1752212883185,10.0,3025.2,3024.6,1.46922478]
[1752212883413,10.0,3025.2,3024.7,0.29273249]
[1752212883758,10.27322348,3026.0,3024.6,1.1783]
[1752212883759,10.27322348,3026.0,3024.8,0.32579252]
[1752212884057,7.95651782,3025.8,3024.9,0.29273249]
[1752212884266,11.30054583,3026.0,3024.6,1.1783]
[1752212884267,10.27322348,3026.0,3025.0,0.29273249]
[1752212884413,7.95651782,3025.8,3025.1,0.29273249]
[1752212884622,10.27322348,3026.0,3024.6,1.1783]
[1752212884623,10.27322348,3026.0,3025.2,0.29273249]
[1752212884948,10.27322348,3026.0,3025.3,0.29273249]
[1752212884949,10.55,3025.7,3025.3,0.29273249]
[1752212885113,11.605,3025.7,3025.4,0.29273249]
[1752212885315,11.605,3025.7,3025.5,0.29273249]
[1752212885514,11.605,3025.7,3025.6,0.29273249]
[1752212885956,10.0,3025.7,3025.6,0.29273249]
[1752212886250,0.15,3026.0,3025.6,1.47653249]
[1752212886439,0.15,3026.0,3025.7,0.29273249]
[1752212886639,0.15,3026.0,3025.8,0.3257816]
[1752212886839,8.01926516,3026.7,3025.9,0.29273249]
[1752212887153,8.01926516,3026.7,3026.1,1.1617]
[1752212887352,8.01926516,3026.7,3026.2,2.51432004]
[1752212887649,8.01926516,3026.7,3026.6,2.22158755]
[1752212887650,2.68975032,3026.7,3026.6,2.22158755]
[1752212887852,2.68975032,3026.7,3026.6,2.55230987]
[1752212888152,2.68975032,3026.7,3026.6,0.29273249]
[1752212888354,2.29357045,3026.7,3026.6,0.29273249]
[1752212888717,2.84357045,3026.7,3026.6,0.29273249]
[1752212889118,2.29357045,3026.7,3026.6,0.29273249]
[1752212890554,2.29357045,3026.7,3026.6,2.71710987]
[1752212890755,2.29357045,3026.7,3026.6,0.45753249]
[1752212890932,2.84357045,3026.7,3026.6,0.45753249]
[1752212891654,12.84357045,3026.7,3026.6,0.45753249]
[1752212891952,15.62774928,3026.7,3026.6,0.45753249]
[1752212892252,12.84357045,3026.7,3026.6,0.45753249]
[1752212892655,10.55,3026.6,3026.0,2.77659813]
[1752212892955,0.55,3026.1,3025.9,2.77659813]
[1752212893157,0.55,3026.1,3025.7,2.77659813]
[1752212893369,0.55,3026.1,3026.0,0.1648]
[1752212894572,11.40065178,3026.1,3025.2,2.77659813]
[1752212894755,11.40065178,3026.1,3024.7,1.1018]
[1752212894756,11.40065178,3026.1,3025.9,0.1648]
[1752212895486,5.877,3026.0,3025.9,0.1648]
[1752212895785,10.55,3026.1,3025.9,0.1648]
[1752212896136,10.55,3026.1,3024.8,2.77659813]
[1752212896337,0.55,3025.5,3024.6,2.77659813]
[1752212896781,0.55,3025.5,3024.2,1.092]
[1752212896782,0.55,3025.5,3025.4,0.1648]
[1752212897279,10.55,3025.5,3024.3,2.77659813]
[1752212897592,1.0839,3027.2,3024.6,2.77659813]
[1752212897891,10.0,3026.8,3025.0,2.77659813]
[1752212898071,7.95651782,3026.9,3025.1,0.03305675]
[1752212898275,7.95651782,3026.3,3025.1,3.88625187]
[1752212898482,7.95651782,3026.3,3025.3,2.77659813]
[1752212898682,7.95651782,3026.3,3024.7,7.0608]
[1752212898683,0.55,3026.1,3025.4,2.77659813]
[1752212898865,0.55,3026.1,3025.1,2.77659813]
[1752212899069,0.55,3026.1,3024.7,1.1748]
[1752212899070,0.55,3026.1,3024.9,2.77659813]
[1752212899271,7.95651782,3026.5,3025.0,0.03305785]
[1752212899612,10.0,3026.6,3025.1,0.2809656]
[1752212899802,2.29357045,3026.7,3025.2,1.20385566]
[1752212900005,2.29357045,3026.7,3025.3,1.1708]
[1752212900316,2.29357045,3026.7,3025.7,2.77659813]
[1752212900467,1.002,3027.3,3026.2,2.77659813]
[1752212900674,1.002,3027.3,3026.3,4.25810159]
[1752212900983,1.002,3027.3,3026.7,2.77659813]
[1752212901311,1.002,3027.3,3026.8,7.0478]
[1752212901452,1.002,3027.3,3026.9,2.77659813]
[1752212901852,1.002,3027.3,3027.0,2.77659813]
[1752212902086,1.002,3027.3,3027.1,0.27765981]
[1752212902464,1.002,3027.3,3026.9,2.77659813]
[1752212902652,1.002,3027.3,3027.0,2.77659813]
[1752212902849,1.002,3027.3,3026.9,2.77659813]
[1752212903053,1.002,3027.3,3026.8,1.1708]
[1752212903054,1.002,3027.3,3027.0,0.033036]
[1752212903488,1.002,3027.3,3026.8,1.1708]
[1752212903692,1.002,3027.3,3027.0,1.1929]
[1752212904056,1.002,3027.3,3027.1,5.867]
[1752212904452,1.002,3027.3,3027.1,5.863]
[1752212904754,1.002,3027.3,3027.2,0.29460092]
[1752212905250,1.002,3027.3,3027.2,0.32763474]
[1752212905450,1.002,3027.3,3027.2,0.29460092]
[1752212905655,1.552,3027.3,3027.2,0.29460092]
[1752212906356,1.002,3027.3,3027.2,0.29460092]
[1752212907095,1.002,3027.3,3027.2,0.45940092]
[1752212907659,1.552,3027.3,3027.2,0.45940092]
[1752212908091,1.002,3027.3,3027.2,0.29460092]
[1752212909697,1.552,3027.3,3027.2,0.29460092]
[1752212909885,1.002,3027.3,3027.2,0.29460092]
[1752212910088,1.552,3027.3,3027.2,0.29460092]
[1752212910256,9.50851782,3027.3,3027.2,0.29460092]
[1752212910461,10.60061782,3027.3,3027.2,0.29460092]
[1752212910659,0.55,3027.2,3026.0,1.143]
[1752212910876,7.95651782,3026.7,3026.0,1.143]
[1752212911070,10.05061782,3027.3,3026.1,0.03304583]
[1752212911271,1.002,3027.3,3026.1,0.03304583]
[1752212911514,8.50651782,3027.2,3026.2,2.77659813]
[1752212911673,7.95651782,3027.2,3026.3,0.27765981]
[1752212911862,1.002,3027.3,3026.3,0.31070346]
[1752212912217,1.002,3027.3,3026.3,0.27765981]
[1752212912525,1.002,3027.3,3026.4,1.1419]
[1752212912689,1.002,3027.3,3025.9,3.88625187]
[1752212912690,0.55,3027.1,3026.0,3.91849813]
[1752212912891,0.55,3027.1,3026.1,0.780475]
[1752212913094,0.55,3027.1,3026.2,0.03304474]
[1752212913835,0.55,3027.1,3026.1,0.780475]
[1752212914122,0.55,3027.1,3026.2,0.03304474]
[1752212914629,0.55,3027.1,3026.1,0.780475]
[1752212914794,0.55,3027.1,3026.2,0.1922375]
[1752212914990,0.55,3027.1,3026.0,1.1419]
[1752212915213,0.55,3027.1,3025.8,2.77659813]
[1752212915214,0.55,3026.5,3025.7,2.77659813]
[1752212915414,0.55,3026.5,3025.6,3.92329813]
[1752212915624,1.177,3026.8,3025.7,0.0330502]
[1752212915829,7.95651782,3026.9,3025.7,2.80964833]
[1752212916003,1.002,3027.3,3025.9,1.1198]
[1752212916206,1.002,3027.3,3025.9,3.89639813]
[1752212916815,1.002,3027.3,3026.0,11.675]
[1752212917016,1.002,3027.3,3026.4,1.1144]
[1752212917238,1.002,3027.3,3026.5,0.03304146]
[1752212917398,1.002,3027.3,3026.4,3.89099813]
[1752212917595,1.002,3027.3,3026.5,0.42214127]
[1752212917796,7.95651782,3028.0,3026.6,1.0789]
[1752212918001,7.95651782,3028.0,3027.9,0.1648]
[1752212918201,9.06061782,3028.5,3027.9,0.1648]
[1752212918402,1.11671518,3029.0,3028.3,0.1648]
[1752212918607,7.95651782,3028.5,3027.2,1.0789]
[1752212918955,7.95651782,3028.5,3028.4,0.1648]
[1752212919232,7.95651782,3028.5,3027.2,1.0789]
[1752212919432,5.831,3028.9,3027.2,1.0789]
[1752212919433,13.78651782,3028.9,3028.4,0.1648]
[1752212919599,13.78651782,3028.9,3028.3,0.1648]
[1752212919600,0.1648,3028.8,3028.3,0.1648]
[1752212919800,0.1648,3028.8,3027.2,1.0789]
[1752212919801,11.59753563,3028.8,3027.2,3.85549813]
[1752212920001,11.59753563,3028.8,3027.0,14.43459813]
[1752212920002,0.55,3028.0,3027.0,14.43459813]
[1752212920227,0.55,3028.0,3027.9,0.1648]
[1752212920446,0.55,3028.0,3027.0,11.658]
[1752212920630,0.55,3028.0,3027.9,0.1648]
[1752212920849,16.82187748,3028.0,3027.9,0.1648]
[1752212921062,6.82187748,3028.0,3027.9,0.1648]
[1752212921668,6.82187748,3028.0,3027.0,11.658]
[1752212921825,0.55,3027.3,3027.1,0.03303491]
[1752212922021,0.55,3027.3,3027.0,11.658]
[1752212922226,6.27187748,3027.4,3027.2,0.1648]
[1752212922723,6.27187748,3027.4,3027.3,0.29502695]
[1752212923323,6.27187748,3027.8,3027.3,0.29502695]
[1752212923538,6.27187748,3027.8,3027.0,11.658]
[1752212923539,0.55,3027.7,3027.4,0.29502695]
[1752212923744,0.55,3027.7,3027.5,0.29502695]
[1752212923952,1.23218775,3027.7,3027.6,0.29502695]
[1752212924255,0.55,3027.9,3027.2,0.1648]
[1752212924468,0.55,3027.9,3026.5,0.38909981]
[1752212924469,0.55,3027.6,3026.4,11.628]
[1752212924811,0.55,3027.4,3027.0,0.1648]
[1752212924929,0.55,3027.5,3027.1,0.03303491]
[1752212925123,6.82187748,3027.4,3027.3,0.1648]
[1752212926744,0.55,3027.3,3026.3,1.1354]
[1752212926944,0.55,3026.7,3026.3,1.52659981]
[1752212927173,0.55,3026.7,3026.3,1.1354]
[1752212927327,0.55,3026.5,3025.6,3.88625187]
[1752212927526,0.55,3025.8,3025.1,1.3888656]
[1752212927742,12.07787748,3025.9,3025.7,0.1648]
[1752212928158,12.07787748,3025.9,3025.1,1.1079]
[1752212928459,6.27187748,3025.2,3025.0,0.001]
[1752212929177,1.20778775,3025.9,3025.0,0.001]
[1752212929386,1.178,3026.4,3025.0,0.001]
[1752212929591,6.27187748,3027.9,3025.4,1.1079]
[1752212929744,1.178,3028.3,3025.1,8.35091975]
[1752212929745,6.27187748,3027.4,3025.6,11.1079]
[1752212930090,6.27187748,3026.9,3025.8,1.1079]
[1752212930545,6.27187748,3026.4,3025.8,1.1079]
[1752212930945,5.824,3027.0,3025.8,1.1079]
[1752212930946,0.55,3026.8,3025.8,1.1079]
[1752212931655,7.92454225,3027.4,3026.0,1.1013]
[1752212931990,7.92454225,3027.4,3026.1,0.69223]
[1752212932327,0.55,3027.3,3026.1,0.69223]
[1752212932448,6.373,3027.3,3026.1,0.69223]
[1752212932647,10.0,3027.5,3026.1,0.69223]
[1752212932648,7.92454225,3026.8,3026.1,0.69223]
[1752212932890,6.369,3026.7,3026.0,1.1013]
[1752212933190,0.55,3026.7,3025.6,1.1253]
[1752212933371,0.55,3026.1,3025.6,1.1253]
[1752212933584,0.55,3026.1,3025.0,0.001]
[1752212933585,0.55,3026.1,3025.1,1.0749]
[1752212933780,6.367,3026.1,3025.1,1.0749]
[1752212934092,7.79615423,3026.1,3025.1,1.0749]
[1752212934400,7.79615423,3026.1,3025.0,0.001]
[1752212934401,7.92454225,3025.6,3025.0,0.001]
[1752212934694,5.814,3025.5,3025.0,0.001]
[1752212934857,0.55,3025.6,3025.0,0.001]
[1752212935656,5.81,3025.5,3025.0,0.001]
[1752212936260,0.55,3025.4,3025.0,0.001]
[1752212936956,5.804,3025.5,3025.0,0.001]
[1752212937282,5.802,3025.6,3025.0,0.001]
[1752212937693,0.55,3025.7,3025.0,0.001]
[1752212937893,7.92454225,3025.2,3025.0,0.001]
[1752212938093,11.601,3025.1,3025.0,0.001]
[1752212938455,0.55,3025.0,3023.5,1.0988]
[1752212938759,7.92454225,3024.6,3023.6,0.03307315]
[1752212938967,11.594,3024.5,3023.5,1.0988]
[1752212939506,0.55,3024.4,3024.3,0.1648]
[1752212939800,0.55,3024.0,3021.7,3.88625187]
[1752212940102,7.92454225,3023.1,3021.8,1.0988]
[1752212940404,7.92454225,3023.1,3021.0,3.88725187]
[1752212940405,0.55,3022.4,3021.1,1.1187]
[1752212940557,0.55,3021.8,3021.0,0.001]
[1752212940756,7.92454225,3021.2,3021.0,0.001]
[1752212940965,5.802,3022.3,3021.0,0.001]
[1752212941169,7.92454225,3022.5,3021.1,1.1187]
[1752212941170,13.73254225,3022.5,3021.1,1.1187]
[1752212941389,13.73254225,3022.5,3021.2,0.03309943]
[1752212941559,9.11434225,3023.2,3021.2,0.03309943]
[1752212941754,7.92454225,3024.2,3021.5,1.1187]
[1752212941966,7.92454225,3024.2,3021.9,10.0]
[1752212942192,1.1898,3024.3,3021.6,15.15736154]
[1752212942193,7.92454225,3023.6,3022.0,1.1187]
[1752212942357,7.92454225,3022.4,3021.5,1.1187]
[1752212942558,7.92454225,3021.8,3021.0,1.1197]
[1752212942967,0.55,3021.7,3021.0,1.1197]
[1752212943155,7.92454225,3021.2,3021.0,0.001]
[1752212943564,0.55,3021.5,3021.0,0.001]
[1752212943793,7.92454225,3021.6,3021.0,0.001]
[1752212944597,7.92454225,3022.3,3021.0,0.001]
[1752212944795,0.55,3022.2,3021.0,0.001]
[1752212944994,7.92454225,3022.3,3021.1,1.0749]
[1752212945159,7.92454225,3022.3,3021.2,0.03309943]
[1752212945364,7.92454225,3022.3,3021.1,1.0749]
[1752212945694,0.55,3022.2,3021.2,0.03309943]
[1752212945901,0.55,3022.2,3021.1,1.0749]
[1752212946071,0.55,3022.2,3021.2,0.03309943]
[1752212946399,7.92454225,3022.3,3021.2,0.03309943]
[1752212946594,7.92454225,3022.3,3021.1,1.0749]
[1752212946889,0.55,3022.2,3021.1,1.0749]
[1752212947093,7.92454225,3021.7,3021.0,0.001]
[1752212947467,7.92454225,3022.2,3021.0,0.001]
[1752212947661,0.55,3022.1,3021.0,0.001]
[1752212948502,7.92454225,3021.6,3021.0,0.001]
[1752212949064,0.55,3021.5,3021.0,0.001]
[1752212949505,7.92454225,3021.6,3021.0,0.001]
[1752212949705,7.92454225,3021.6,3021.4,0.1648]
[1752212950507,7.4326,3022.0,3021.4,0.1648]
[1752212950508,0.55,3022.0,3021.4,0.1648]
[1752212950668,0.55,3022.0,3021.5,0.03309614]
[1752212950993,0.55,3022.0,3021.9,0.1648]
[1752212951194,7.92454225,3022.1,3021.9,0.1648]
[1752212951506,1.0956,3023.0,3021.9,0.1648]
[1752212951709,7.92454225,3022.6,3021.9,0.1648]
[1752212951893,13.71854225,3022.6,3021.7,1.1686]